[Event "Titled Tuesday Blitz October 31 Late 2023"]
[White "Fernandez Hernandez, Gerardo"]
[Black "Smirnov, Timofey"]
[WhiteFideId "2207400"]
[BlackFideId "24176427"]
[WhiteElo "2145"]
[BlackElo "2192"]
[Result "0-1"]
[Round "7"]
[TimeControl "180+1"]
[Date "2023.10.31"]
[WhiteClock "0:00:00"]
[BlackClock "0:00:08"]
[Board "138"]

1. e4 {[%clk 0:03:00]}  e5 {[%clk 0:02:59]} 2. Nf3 {[%clk 0:03:00]}  Nf6 {[%clk 0:02:59]} 3. Nc3 {[%clk 0:02:59]}  Bb4 {[%clk 0:02:58]} 4. Nxe5 {[%clk 0:02:58]}  O-O {[%clk 0:02:57]} 5. Be2 {[%clk 0:02:55]}  Re8 {[%clk 0:02:52]} 6. Nd3 {[%clk 0:02:55]}  Bxc3 {[%clk 0:02:50]} 7. dxc3 {[%clk 0:02:56]}  Nxe4 {[%clk 0:02:49]} 8. O-O {[%clk 0:02:53]}  d6 {[%clk 0:02:45]} 9. Bf3 {[%clk 0:02:51]}  Nc6 {[%clk 0:02:38]} 10. Re1 {[%clk 0:02:48]}  Nf6 {[%clk 0:02:36]} 11. Bg5 {[%clk 0:02:43]}  Be6 {[%clk 0:02:07]} 12. Nf4 {[%clk 0:02:35]}  h6 {[%clk 0:02:01]} 13. Nxe6 {[%clk 0:02:25]}  Rxe6 {[%clk 0:01:56]} 14. Rxe6 {[%clk 0:02:20]}  fxe6 {[%clk 0:01:56]} 15. Bh4 {[%clk 0:02:10]}  g5 {[%clk 0:01:53]} 16. Bg3 {[%clk 0:02:08]}  Qe7 {[%clk 0:01:33]} 17. Qe2 {[%clk 0:01:57]}  Re8 {[%clk 0:01:24]} 18. Re1 {[%clk 0:01:56]}  e5 {[%clk 0:01:23]} 19. Bxc6 {[%clk 0:01:30]}  bxc6 {[%clk 0:01:23]} 20. Qc4+ {[%clk 0:01:30]}  Kg7 {[%clk 0:01:12]} 21. Qxc6 {[%clk 0:01:30]}  Nh5 {[%clk 0:01:10]} 22. Qb7 {[%clk 0:01:19]}  Nxg3 {[%clk 0:01:09]} 23. hxg3 {[%clk 0:01:19]}  c5 {[%clk 0:01:08]} 24. Qd5 {[%clk 0:01:13]}  Rf8 {[%clk 0:01:03]} 25. Rd1 {[%clk 0:01:07]}  Rf6 {[%clk 0:00:56]} 26. f3 {[%clk 0:01:01]}  Qf8 {[%clk 0:00:55]} 27. g4 {[%clk 0:00:59]}  Qb8 {[%clk 0:00:47]} 28. b3 {[%clk 0:00:56]}  Qb6 {[%clk 0:00:44]} 29. Qc4 {[%clk 0:00:46]}  a5 {[%clk 0:00:41]} 30. a4 {[%clk 0:00:45]}  Kg6 {[%clk 0:00:38]} 31. Qb5 {[%clk 0:00:44]}  Qc7 {[%clk 0:00:35]} 32. Qc4 {[%clk 0:00:43]}  Kg7 {[%clk 0:00:36]} 33. Qa6 {[%clk 0:00:40]}  d5 {[%clk 0:00:33]} 34. Qd3 {[%clk 0:00:34]}  d4 {[%clk 0:00:30]} 35. c4 {[%clk 0:00:27]}  Qf7 {[%clk 0:00:28]} 36. Re1 {[%clk 0:00:24]}  Re6 {[%clk 0:00:27]} 37. Qd2 {[%clk 0:00:20]}  Qe7 {[%clk 0:00:24]} 38. Qxa5 {[%clk 0:00:18]}  e4 {[%clk 0:00:23]} 39. fxe4 {[%clk 0:00:18]}  Rxe4 {[%clk 0:00:23]} 40. Rf1 {[%clk 0:00:16]}  Rxg4 {[%clk 0:00:17]} 41. Qe1 {[%clk 0:00:14]}  Re4 {[%clk 0:00:14]} 42. Qf2 {[%clk 0:00:14]}  Re2 {[%clk 0:00:13]} 43. Qg3 {[%clk 0:00:07]}  Re3 {[%clk 0:00:12]} 44. Qf2 {[%clk 0:00:05]}  Re2 {[%clk 0:00:11]} 45. Qg3 {[%clk 0:00:05]}  Re6 {[%clk 0:00:11]} 46. Rf2 {[%clk 0:00:05]}  Re1+ {[%clk 0:00:11]} 47. Kh2 {[%clk 0:00:05]}  Qe6 {[%clk 0:00:09]} 48. Qh3 {[%clk 0:00:05]}  Qe7 {[%clk 0:00:08]} 49. Qf3 {[%clk 0:00:04]}  Re3 {[%clk 0:00:09]} 50. Qd5 {[%clk 0:00:04]}  Re5 {[%clk 0:00:08]} 51. Qf3 {[%clk 0:00:03]}  Qc7 {[%clk 0:00:09]} 52. Qg3 {[%clk 0:00:03]}  Qe7 {[%clk 0:00:08]} 53. Qf3 {[%clk 0:00:03]}  Re3 {[%clk 0:00:08]} 54. Qf5 {[%clk 0:00:03]}  Qc7+ {[%clk 0:00:07]} 55. Kg1 {[%clk 0:00:01]}  Re1+ {[%clk 0:00:07]} 56. Rf1 {[%clk 0:00:02]}  Re3 {[%clk 0:00:07]} 57. Rf2 {[%clk 0:00:00]}  Qe7 {[%clk 0:00:08]} 0-1


[Site "https://www.chess.com"]

[Event "Titled Tuesday Blitz October 31 Late 2023"]
[White "Aravindh, Chithambaram VR."]
[Black "Andreikin, Dmitry"]
[WhiteFideId "5072786"]
[BlackFideId "4158814"]
[WhiteElo "2912"]
[BlackElo "3117"]
[Result "1/2-1/2"]
[Round "8"]
[TimeControl "180+1"]
[Date "2023.10.31"]
[WhiteClock "0:01:32"]
[BlackClock "0:01:31"]
[Board "2"]

1. e4 {[%clk 0:03:00]}  e5 {[%clk 0:02:58]} 2. Nf3 {[%clk 0:02:59]}  Nc6 {[%clk 0:02:59]} 3. Nc3 {[%clk 0:02:58]}  Nf6 {[%clk 0:02:59]} 4. d4 {[%clk 0:02:58]}  exd4 {[%clk 0:02:58]} 5. Nxd4 {[%clk 0:02:58]}  Bb4 {[%clk 0:02:58]} 6. Nxc6 {[%clk 0:02:58]}  bxc6 {[%clk 0:02:58]} 7. Bd3 {[%clk 0:02:58]}  O-O {[%clk 0:02:58]} 8. O-O {[%clk 0:02:58]}  d5 {[%clk 0:02:59]} 9. exd5 {[%clk 0:02:57]}  cxd5 {[%clk 0:03:00]} 10. Bg5 {[%clk 0:02:53]}  c6 {[%clk 0:02:59]} 11. Qf3 {[%clk 0:02:52]}  Rb8 {[%clk 0:02:57]} 12. Rae1 {[%clk 0:02:52]}  Bd6 {[%clk 0:02:53]} 13. Nd1 {[%clk 0:02:50]}  h6 {[%clk 0:02:49]} 14. Bxf6 {[%clk 0:02:50]}  Qxf6 {[%clk 0:02:49]} 15. Qxf6 {[%clk 0:02:50]}  gxf6 {[%clk 0:02:50]} 16. b3 {[%clk 0:02:50]}  Bd7 {[%clk 0:02:46]} 17. Ne3 {[%clk 0:02:49]}  Rfe8 {[%clk 0:02:45]} 18. g3 {[%clk 0:02:44]}  Bh3 {[%clk 0:02:40]} 19. Ng2 {[%clk 0:02:35]}  Bb4 {[%clk 0:02:38]} 20. Rxe8+ {[%clk 0:02:31]}  Rxe8 {[%clk 0:02:39]} 21. Rd1 {[%clk 0:02:31]}  Bg4 {[%clk 0:02:15]} 22. Rb1 {[%clk 0:02:28]}  a5 {[%clk 0:02:12]} 23. Ne3 {[%clk 0:02:26]}  Be6 {[%clk 0:02:12]} 24. Nf5 {[%clk 0:02:12]}  Bxf5 {[%clk 0:02:04]} 25. Bxf5 {[%clk 0:02:12]}  Re2 {[%clk 0:02:03]} 26. Bd3 {[%clk 0:02:11]}  Rd2 {[%clk 0:02:00]} 27. Re1 {[%clk 0:01:46]}  Kf8 {[%clk 0:01:58]} 28. Kf1 {[%clk 0:01:43]}  Bc3 {[%clk 0:01:47]} 29. Bf5 {[%clk 0:01:34]}  Bd4 {[%clk 0:01:42]} 30. Re2 {[%clk 0:01:33]}  Rxe2 {[%clk 0:01:38]} 31. Kxe2 {[%clk 0:01:34]}  Ke7 {[%clk 0:01:31]} 32. a4 {[%clk 0:01:32]} 1/2-1/2


[Site "https://www.chess.com"]

[Event "Titled Tuesday Blitz October 31 Late 2023"]
[White "Pranav, V"]
[Black "Sjugirov, Sanan"]
[WhiteFideId "25060783"]
[BlackFideId "4189302"]
[WhiteElo "3049"]
[BlackElo "2951"]
[Result "1-0"]
[Round "8"]
[TimeControl "180+1"]
[Date "2023.10.31"]
[WhiteClock "0:00:13"]
[BlackClock "0:00:41"]
[Board "4"]

1. e4 {[%clk 0:03:00]}  c5 {[%clk 0:02:57]} 2. Nf3 {[%clk 0:03:01]}  d6 {[%clk 0:02:57]} 3. d4 {[%clk 0:03:01]}  cxd4 {[%clk 0:02:57]} 4. Nxd4 {[%clk 0:03:02]}  a6 {[%clk 0:02:57]} 5. Nc3 {[%clk 0:03:02]}  g6 {[%clk 0:02:53]} 6. h4 {[%clk 0:03:00]}  h5 {[%clk 0:02:45]} 7. Bg5 {[%clk 0:02:59]}  Bg7 {[%clk 0:02:43]} 8. Qd2 {[%clk 0:02:59]}  Nc6 {[%clk 0:02:42]} 9. Nb3 {[%clk 0:02:58]}  Nf6 {[%clk 0:02:37]} 10. O-O-O {[%clk 0:02:56]}  Be6 {[%clk 0:02:31]} 11. f3 {[%clk 0:02:47]}  Rc8 {[%clk 0:02:30]} 12. Be2 {[%clk 0:02:47]}  b5 {[%clk 0:02:24]} 13. Kb1 {[%clk 0:02:45]}  Ne5 {[%clk 0:02:20]} 14. Nd4 {[%clk 0:02:41]}  Bd7 {[%clk 0:02:19]} 15. f4 {[%clk 0:02:35]}  b4 {[%clk 0:02:12]} 16. Nd5 {[%clk 0:02:22]}  Nxd5 {[%clk 0:02:01]} 17. fxe5 {[%clk 0:02:11]}  dxe5 {[%clk 0:02:00]} 18. Nb3 {[%clk 0:01:19]}  Nf6 {[%clk 0:01:56]} 19. Bxa6 {[%clk 0:01:15]}  Rc7 {[%clk 0:01:42]} 20. Bxf6 {[%clk 0:01:09]}  Bxf6 {[%clk 0:01:42]} 21. Bb5 {[%clk 0:01:07]}  e6 {[%clk 0:01:35]} 22. Qxb4 {[%clk 0:01:04]}  Be7 {[%clk 0:01:30]} 23. Qa4 {[%clk 0:01:03]}  Qc8 {[%clk 0:01:02]} 24. Rxd7 {[%clk 0:01:02]}  Rxd7 {[%clk 0:01:03]} 25. Rd1 {[%clk 0:01:00]}  O-O {[%clk 0:01:03]} 26. Bxd7 {[%clk 0:00:59]}  Qb7 {[%clk 0:01:03]} 27. Qc6 {[%clk 0:00:56]}  Qa7 {[%clk 0:01:04]} 28. a4 {[%clk 0:00:45]}  Bxh4 {[%clk 0:01:02]} 29. a5 {[%clk 0:00:45]}  Rb8 {[%clk 0:00:58]} 30. Bxe6 {[%clk 0:00:43]}  fxe6 {[%clk 0:00:55]} 31. Qxe6+ {[%clk 0:00:44]}  Qf7 {[%clk 0:00:55]} 32. Qxf7+ {[%clk 0:00:42]}  Kxf7 {[%clk 0:00:56]} 33. a6 {[%clk 0:00:39]}  Ra8 {[%clk 0:00:55]} 34. Rd7+ {[%clk 0:00:33]}  Ke6 {[%clk 0:00:53]} 35. Nc5+ {[%clk 0:00:33]}  Kf6 {[%clk 0:00:53]} 36. Rd6+ {[%clk 0:00:21]}  Kf7 {[%clk 0:00:53]} 37. b4 {[%clk 0:00:17]}  Bf2 {[%clk 0:00:52]} 38. Nd3 {[%clk 0:00:16]}  Bd4 {[%clk 0:00:52]} 39. b5 {[%clk 0:00:15]}  h4 {[%clk 0:00:51]} 40. Ka2 {[%clk 0:00:13]}  g5 {[%clk 0:00:50]} 41. Kb3 {[%clk 0:00:13]}  Kg7 {[%clk 0:00:48]} 42. c3 {[%clk 0:00:13]}  Bg1 {[%clk 0:00:47]} 43. Nxe5 {[%clk 0:00:13]}  Bh2 {[%clk 0:00:47]} 44. Rg6+ {[%clk 0:00:13]}  Kh7 {[%clk 0:00:47]} 45. Rxg5 {[%clk 0:00:14]}  Kh6 {[%clk 0:00:47]} 46. Rf5 {[%clk 0:00:14]}  Rg8 {[%clk 0:00:41]} 47. Nf3 {[%clk 0:00:13]} 1-0


[Site "https://www.chess.com"]

[Event "Titled Tuesday Blitz October 31 Late 2023"]
[White "Szpar, Milosz"]
[Black "Hong, Andrew"]
[WhiteFideId "1184989"]
[BlackFideId "2099438"]
[WhiteElo "2780"]
[BlackElo "2956"]
[Result "1/2-1/2"]
[Round "8"]
[TimeControl "180+1"]
[Date "2023.10.31"]
[WhiteClock "0:00:04"]
[BlackClock "0:00:05"]
[Board "8"]

1. Nf3 {[%clk 0:03:00]}  Nf6 {[%clk 0:02:59]} 2. c4 {[%clk 0:03:01]}  e6 {[%clk 0:02:57]} 3. b3 {[%clk 0:03:00]}  d5 {[%clk 0:02:57]} 4. Bb2 {[%clk 0:03:00]}  Be7 {[%clk 0:02:54]} 5. e3 {[%clk 0:02:55]}  O-O {[%clk 0:02:54]} 6. Nc3 {[%clk 0:02:55]}  c5 {[%clk 0:02:52]} 7. cxd5 {[%clk 0:02:56]}  Nxd5 {[%clk 0:02:53]} 8. Qc2 {[%clk 0:02:55]}  Nc6 {[%clk 0:02:53]} 9. h4 {[%clk 0:02:50]}  h6 {[%clk 0:02:49]} 10. a3 {[%clk 0:02:21]}  b6 {[%clk 0:02:46]} 11. Be2 {[%clk 0:01:32]}  Bb7 {[%clk 0:02:45]} 12. Nxd5 {[%clk 0:01:25]}  exd5 {[%clk 0:02:45]} 13. d4 {[%clk 0:01:25]}  cxd4 {[%clk 0:02:30]} 14. Nxd4 {[%clk 0:01:24]}  Nxd4 {[%clk 0:02:25]} 15. Bxd4 {[%clk 0:01:25]}  Bxh4 {[%clk 0:02:26]} 16. Qb2 {[%clk 0:01:19]}  Bf6 {[%clk 0:02:05]} 17. Bxf6 {[%clk 0:01:18]}  Qxf6 {[%clk 0:02:05]} 18. Qxf6 {[%clk 0:01:18]}  gxf6 {[%clk 0:02:06]} 19. Rxh6 {[%clk 0:01:04]}  Kg7 {[%clk 0:02:05]} 20. Rh4 {[%clk 0:00:59]}  Rh8 {[%clk 0:02:03]} 21. Rg4+ {[%clk 0:00:58]}  Kf8 {[%clk 0:02:03]} 22. Rc1 {[%clk 0:00:59]}  Rc8 {[%clk 0:01:58]} 23. Rxc8+ {[%clk 0:00:49]}  Bxc8 {[%clk 0:01:59]} 24. Rd4 {[%clk 0:00:48]}  Rh1+ {[%clk 0:01:55]} 25. Kd2 {[%clk 0:00:48]}  Ra1 {[%clk 0:01:55]} 26. a4 {[%clk 0:00:47]}  Ra2+ {[%clk 0:01:53]} 27. Kd1 {[%clk 0:00:47]}  Bf5 {[%clk 0:01:52]} 28. Ke1 {[%clk 0:00:36]}  Bc2 {[%clk 0:00:58]} 29. Bd1 {[%clk 0:00:37]}  Ra1 {[%clk 0:00:47]} 30. Ke2 {[%clk 0:00:37]}  Be4 {[%clk 0:00:48]} 31. g3 {[%clk 0:00:36]}  Ke7 {[%clk 0:00:41]} 32. f3 {[%clk 0:00:35]}  Ra2+ {[%clk 0:00:41]} 33. Ke1 {[%clk 0:00:34]}  Bf5 {[%clk 0:00:33]} 34. Rxd5 {[%clk 0:00:35]}  Be6 {[%clk 0:00:34]} 35. Rd3 {[%clk 0:00:35]}  Rb2 {[%clk 0:00:34]} 36. g4 {[%clk 0:00:34]}  f5 {[%clk 0:00:30]} 37. g5 {[%clk 0:00:32]}  f6 {[%clk 0:00:20]} 38. g6 {[%clk 0:00:19]}  Rg2 {[%clk 0:00:20]} 39. Rc3 {[%clk 0:00:19]}  Kd6 {[%clk 0:00:20]} 40. Rd3+ {[%clk 0:00:17]}  Ke7 {[%clk 0:00:20]} 41. Rc3 {[%clk 0:00:17]}  Kd6 {[%clk 0:00:19]} 42. Rd3+ {[%clk 0:00:12]}  Kc7 {[%clk 0:00:20]} 43. Rc3+ {[%clk 0:00:11]}  Kd8 {[%clk 0:00:18]} 44. Rd3+ {[%clk 0:00:10]}  Bd7 {[%clk 0:00:19]} 45. Rd4 {[%clk 0:00:09]}  Ke7 {[%clk 0:00:18]} 46. Rc4 {[%clk 0:00:08]}  Kd6 {[%clk 0:00:18]} 47. Rd4+ {[%clk 0:00:08]}  Kc7 {[%clk 0:00:18]} 48. Rc4+ {[%clk 0:00:09]}  Kd8 {[%clk 0:00:18]} 49. Rd4 {[%clk 0:00:09]}  Rxg6 {[%clk 0:00:19]} 50. Be2 {[%clk 0:00:09]}  Rg2 {[%clk 0:00:16]} 51. Bb5 {[%clk 0:00:09]}  Rg7 {[%clk 0:00:15]} 52. Kf2 {[%clk 0:00:09]}  Kc7 {[%clk 0:00:15]} 53. Rxd7+ {[%clk 0:00:09]}  Rxd7 {[%clk 0:00:16]} 54. Bxd7 {[%clk 0:00:09]}  Kxd7 {[%clk 0:00:16]} 55. Kg3 {[%clk 0:00:10]}  Ke6 {[%clk 0:00:14]} 56. Kh4 {[%clk 0:00:05]}  Ke5 {[%clk 0:00:12]} 57. Kh5 {[%clk 0:00:04]}  f4 {[%clk 0:00:12]} 58. e4 {[%clk 0:00:05]}  Kd4 {[%clk 0:00:12]} 59. Kg6 {[%clk 0:00:05]}  Ke3 {[%clk 0:00:10]} 60. Kxf6 {[%clk 0:00:05]}  Kxf3 {[%clk 0:00:10]} 61. e5 {[%clk 0:00:06]}  Kg3 {[%clk 0:00:09]} 62. e6 {[%clk 0:00:07]}  f3 {[%clk 0:00:10]} 63. e7 {[%clk 0:00:07]}  f2 {[%clk 0:00:10]} 64. e8=Q {[%clk 0:00:08]}  f1=Q+ {[%clk 0:00:11]} 65. Ke7 {[%clk 0:00:04]}  Qe2+ {[%clk 0:00:09]} 66. Kd8 {[%clk 0:00:04]}  Qd3+ {[%clk 0:00:09]} 67. Qd7 {[%clk 0:00:04]}  Qxb3 {[%clk 0:00:10]} 68. Qxa7 {[%clk 0:00:04]}  Kf4 {[%clk 0:00:07]} 69. Kc7 {[%clk 0:00:05]}  Ke5 {[%clk 0:00:05]} 70. Kb7 {[%clk 0:00:04]}  Qb4 {[%clk 0:00:03]} 71. Qa6 {[%clk 0:00:04]}  Qe4+ {[%clk 0:00:01]} 72. Ka7 {[%clk 0:00:04]}  Qc2 {[%clk 0:00:01]} 73. Kxb6 {[%clk 0:00:03]}  Kd5 {[%clk 0:00:02]} 74. Qb5+ {[%clk 0:00:03]}  Kd6 {[%clk 0:00:03]} 75. Qb4+ {[%clk 0:00:03]}  Kd5 {[%clk 0:00:03]} 76. Qb5+ {[%clk 0:00:03]}  Kd6 {[%clk 0:00:03]} 77. Qb4+ {[%clk 0:00:03]}  Kd5 {[%clk 0:00:03]} 78. Qa5+ {[%clk 0:00:04]}  Kd6 {[%clk 0:00:04]} 79. Ka6 {[%clk 0:00:04]}  Qd3+ {[%clk 0:00:03]} 80. Qb5 {[%clk 0:00:04]}  Qd2 {[%clk 0:00:03]} 81. a5 {[%clk 0:00:04]}  Ke6 {[%clk 0:00:03]} 82. Qc6+ {[%clk 0:00:05]}  Kf5 {[%clk 0:00:03]} 83. Kb7 {[%clk 0:00:04]}  Qxa5 {[%clk 0:00:03]} 84. Qb6 {[%clk 0:00:02]}  Qe5 {[%clk 0:00:03]} 85. Qc6 {[%clk 0:00:02]}  Qf4 {[%clk 0:00:03]} 86. Qc7 {[%clk 0:00:03]}  Qf3+ {[%clk 0:00:03]} 87. Qc6 {[%clk 0:00:03]}  Qg4 {[%clk 0:00:04]} 88. Qd7+ {[%clk 0:00:03]}  Kf4 {[%clk 0:00:04]} 89. Qxg4+ {[%clk 0:00:04]}  Kxg4 {[%clk 0:00:05]} 1/2-1/2


[Site "https://www.chess.com"]

[Event "Titled Tuesday Blitz October 31 Late 2023"]
[White "Krallis, Christos"]
[Black "Elsa167"]
[WhiteFideId "4298896"]
[WhiteElo "2749"]
[BlackElo "2955"]
[Result "0-1"]
[Round "8"]
[TimeControl "180+1"]
[Date "2023.10.31"]
[WhiteClock "0:00:00"]
[BlackClock "0:00:08"]
[Board "13"]

1. Nf3 {[%clk 0:02:58]}  Nf6 {[%clk 0:02:59]} 2. g3 {[%clk 0:02:57]}  g6 {[%clk 0:02:59]} 3. Bg2 {[%clk 0:02:57]}  Bg7 {[%clk 0:03:00]} 4. O-O {[%clk 0:02:57]}  O-O {[%clk 0:03:01]} 5. b3 {[%clk 0:02:58]}  d6 {[%clk 0:02:59]} 6. Bb2 {[%clk 0:02:57]}  e5 {[%clk 0:03:00]} 7. d3 {[%clk 0:02:58]}  Nc6 {[%clk 0:02:59]} 8. c4 {[%clk 0:02:58]}  Re8 {[%clk 0:02:53]} 9. Nbd2 {[%clk 0:02:51]}  a5 {[%clk 0:02:51]} 10. a3 {[%clk 0:02:51]}  h6 {[%clk 0:02:47]} 11. Ne1 {[%clk 0:02:35]}  Be6 {[%clk 0:02:40]} 12. Nc2 {[%clk 0:02:27]}  Qd7 {[%clk 0:02:40]} 13. b4 {[%clk 0:02:27]}  Bh3 {[%clk 0:02:32]} 14. b5 {[%clk 0:02:17]}  Bxg2 {[%clk 0:02:32]} 15. Kxg2 {[%clk 0:02:17]}  Ne7 {[%clk 0:02:32]} 16. e4 {[%clk 0:02:07]}  c5 {[%clk 0:02:13]} 17. Ne3 {[%clk 0:02:02]}  Nh7 {[%clk 0:02:05]} 18. h4 {[%clk 0:02:00]}  f5 {[%clk 0:02:01]} 19. h5 {[%clk 0:01:57]}  g5 {[%clk 0:01:42]} 20. exf5 {[%clk 0:01:54]}  Nxf5 {[%clk 0:01:42]} 21. Nxf5 {[%clk 0:01:48]}  Qxf5 {[%clk 0:01:43]} 22. Ne4 {[%clk 0:01:48]}  Rad8 {[%clk 0:01:36]} 23. Qf3 {[%clk 0:01:28]}  Qxf3+ {[%clk 0:01:35]} 24. Kxf3 {[%clk 0:01:28]}  b6 {[%clk 0:01:34]} 25. Rae1 {[%clk 0:01:13]}  d5 {[%clk 0:01:30]} 26. cxd5 {[%clk 0:01:11]}  Rxd5 {[%clk 0:01:30]} 27. Ke2 {[%clk 0:01:06]}  Red8 {[%clk 0:01:29]} 28. Rd1 {[%clk 0:01:01]}  Nf8 {[%clk 0:01:03]} 29. Nc3 {[%clk 0:00:55]}  R5d7 {[%clk 0:01:01]} 30. Na4 {[%clk 0:00:51]}  Rd6 {[%clk 0:00:59]} 31. Nc3 {[%clk 0:00:50]}  Ne6 {[%clk 0:00:59]} 32. Ne4 {[%clk 0:00:49]}  R6d7 {[%clk 0:00:59]} 33. Nd2 {[%clk 0:00:33]}  e4 {[%clk 0:00:49]} 34. Bxg7 {[%clk 0:00:25]}  exd3+ {[%clk 0:00:48]} 35. Ke3 {[%clk 0:00:18]}  Kxg7 {[%clk 0:00:47]} 36. Nc4 {[%clk 0:00:18]}  Re7 {[%clk 0:00:39]} 37. f4 {[%clk 0:00:11]}  Nxf4+ {[%clk 0:00:33]} 38. Kd2 {[%clk 0:00:08]}  Re2+ {[%clk 0:00:31]} 39. Kc3 {[%clk 0:00:08]}  Nd5+ {[%clk 0:00:17]} 40. Kb3 {[%clk 0:00:08]}  a4+ {[%clk 0:00:16]} 41. Kxa4 {[%clk 0:00:08]}  Rc2 {[%clk 0:00:14]} 42. Ne5 {[%clk 0:00:02]}  c4 {[%clk 0:00:12]} 43. Nxc4 {[%clk 0:00:02]}  Rxc4+ {[%clk 0:00:12]} 44. Kb3 {[%clk 0:00:02]}  Rc3+ {[%clk 0:00:13]} 45. Kb2 {[%clk 0:00:03]}  Rc2+ {[%clk 0:00:08]} 46. Kb3 {[%clk 0:00:04]}  Ne3 {[%clk 0:00:08]} 47. Rde1 {[%clk 0:00:01]}  Nxf1 {[%clk 0:00:08]} 48. Re7+ {[%clk 0:00:00]}  Kg8 {[%clk 0:00:08]} 0-1


[Site "https://www.chess.com"]

[Event "Titled Tuesday Blitz October 31 Late 2023"]
[White "Annaberdiyev, Meylis"]
[Black "Zhigalko, Sergei"]
[WhiteFideId "14000563"]
[BlackFideId "13502956"]
[WhiteElo "2707"]
[BlackElo "2909"]
[Result "0-1"]
[Round "8"]
[TimeControl "180+1"]
[Date "2023.10.31"]
[WhiteClock "0:00:00"]
[BlackClock "0:00:02"]
[Board "18"]

1. d4 {[%clk 0:03:00]}  Nf6 {[%clk 0:03:00]} 2. Bg5 {[%clk 0:02:59]}  d5 {[%clk 0:03:00]} 3. Nd2 {[%clk 0:02:59]}  Nbd7 {[%clk 0:02:50]} 4. Ngf3 {[%clk 0:02:57]}  b6 {[%clk 0:02:47]} 5. e3 {[%clk 0:02:57]}  Bb7 {[%clk 0:02:47]} 6. c3 {[%clk 0:02:42]}  e6 {[%clk 0:02:43]} 7. Bd3 {[%clk 0:02:41]}  Be7 {[%clk 0:02:43]} 8. O-O {[%clk 0:02:34]}  O-O {[%clk 0:02:43]} 9. Ne5 {[%clk 0:02:33]}  Nxe5 {[%clk 0:02:36]} 10. dxe5 {[%clk 0:02:34]}  Nd7 {[%clk 0:02:36]} 11. Bf4 {[%clk 0:02:23]}  f5 {[%clk 0:02:35]} 12. exf6 {[%clk 0:02:07]}  Nxf6 {[%clk 0:02:21]} 13. Nf3 {[%clk 0:02:04]}  Bd6 {[%clk 0:02:18]} 14. Qc2 {[%clk 0:02:00]}  Qe7 {[%clk 0:02:10]} 15. Be5 {[%clk 0:01:09]}  Ne4 {[%clk 0:01:40]} 16. Bg3 {[%clk 0:00:25]}  Kh8 {[%clk 0:01:00]} 17. Rad1 {[%clk 0:00:23]}  Rad8 {[%clk 0:00:49]} 18. a4 {[%clk 0:00:21]}  Nxg3 {[%clk 0:00:32]} 19. hxg3 {[%clk 0:00:21]}  g6 {[%clk 0:00:32]} 20. e4 {[%clk 0:00:20]}  Qg7 {[%clk 0:00:24]} 21. Rfe1 {[%clk 0:00:19]}  Rde8 {[%clk 0:00:21]} 22. a5 {[%clk 0:00:17]}  bxa5 {[%clk 0:00:18]} 23. Qa4 {[%clk 0:00:16]}  Bc5 {[%clk 0:00:18]} 24. exd5 {[%clk 0:00:09]}  Bxd5 {[%clk 0:00:19]} 25. Be4 {[%clk 0:00:10]}  c6 {[%clk 0:00:17]} 26. Qxa5 {[%clk 0:00:09]}  Bb6 {[%clk 0:00:17]} 27. Qa4 {[%clk 0:00:09]}  Qc7 {[%clk 0:00:11]} 28. Kf1 {[%clk 0:00:07]}  Qg7 {[%clk 0:00:07]} 29. Rd2 {[%clk 0:00:07]}  Qh6 {[%clk 0:00:06]} 30. Kg1 {[%clk 0:00:06]}  Rxf3 {[%clk 0:00:06]} 31. Rxd5 {[%clk 0:00:04]}  exd5 {[%clk 0:00:06]} 32. gxf3 {[%clk 0:00:03]}  dxe4 {[%clk 0:00:06]} 33. Qxc6 {[%clk 0:00:03]}  Rf8 {[%clk 0:00:03]} 34. Rxe4 {[%clk 0:00:00]}  Qd2 {[%clk 0:00:02]} 0-1


[Site "https://www.chess.com"]